[Event "Germany Countries-chT Youth 2022"]
[Site "Wiesbaden"]
[Date "2022.10.03"]
[Round "5"]
[White "Feidt, Jonas"]
[Black "Hecht, Jonas Christian"]
[Result "0-1"]
[ECO "A20"]
[WhiteElo "1908"]
[BlackElo "1852"]
[Annotator "TA"]
[PlyCount "68"]
[EventDate "2022.09.28"]
[EventType "team-tourn"]
[EventRounds "7"]
[EventCountry "GER"]
[TimeControl "40/5400+30:1800+30"]

{[%evp 22,68,0,-10,-4,-34,-47,-113,-130,-124,-108,-171,-114,-115,-85,-112,-99,-158,-141,-141,-101,-118,-112,-186,-160,-187,-156,-181,-147,-267,-171,-173,-175,-179,0,0,11,0,0,10,27,0,0,-243,-237,-29979,-6917,-29991,-29992]} 1. c4 {[%emt 0:00:04]} e5 {[%emt 0:00:04]} 2. g3 {[%emt 0:00:39]} Nf6 {[%emt 0:00:12]} 3. Bg2 {[%emt 0:00:06]} d5 {[%emt 0:04:54]} 4. cxd5 {[%emt 0:00:09]} Nxd5 {[%emt 0:00:05]} 5. Nc3 {[%emt 0:00:06]} Nb6 {[%emt 0:00:21]} 6. Nf3 {[%emt 0:00:13]} Nc6 {[%emt 0:00:06]} 7. O-O {[%emt 0:01:15]} Be7 {[%emt 0:00:07]} 8. a3 {[%emt 0:00:13]} O-O {[%emt 0:00:55]} 9. b4 {[%emt 0:01:17]} Be6 {[%emt 0:01:34]} 10. d3 {[%emt 0:00:17]} a5 {[%emt 0:04:26]} 11. b5 {[%emt 0:04:10]} Nd4 {[%emt 0:00:06]} 12. Nd2 {[%emt 0:01:49] 12.Rb1 gains popularity.} c6 {[%emt 0:00:27] A29: English Opening: Four Knights Variation with 4 g3.} 13. a4 {[%emt 0:20:51]} cxb5 {[%emt 0:04:09]} (13... Bb4 14. Bb2 cxb5 15. Nxb5 Nxb5 16. axb5 Bd5) 14. axb5 {[%emt 0:07:24] [#]} (14. Nxb5 Nxb5 15. axb5) (14. Nxb5 $15 Nxb5 15. axb5) 14... Bb4 $146 {[%emt 0:04:28] Black is better.} (14... Rc8 15. Bb2 Bb4 16. Rc1 Qd7 17. e3 Nxb5 18. Nxb5 Qxb5 19. Bxb7 Rxc1 20. Qxc1 Qxd3 21. Nf3 f6 22. Rd1 Qe2 23. Kg2 Nc4 24. Ba1 Nxe3+) ({Predecessor:} 14... Rc8 15. Bb2 Bb4 16. Rc1 Qd7 17. e3 Nxb5 18. Nxb5 Qxb5 19. Bxb7 Rxc1 20. Qxc1 Qxd3 21. Nf3 f6 22. Rd1 Qe2 23. Kg2 Nc4 24. Ba1 Nxe3+ {0-1 (24) Cacas,A-Landes,E (1954) ICCF email 2013}) 15. Bb2 {[%emt 0:04:49]} a4 {[%emt 0:14:07] aiming for ...a3. Black is much more active.} 16. Rb1 {[%emt 0:15:12]} (16. Bxb7 a3 17. Bxa3 (17. Bxa8 axb2 18. Ra6 Bxc3) 17... Rxa3 18. Rxa3 Bxa3) (16. Bxb7 $2 a3 17. Bxa3 (17. Bxa8 $2 axb2 18. Ra6 Bxc3 $19) 17... Rxa3 18. Rxa3 Bxa3 $19) (16. Na2 $17 Bxd2 17. Bxd4 Qxd4 18. Qxd2) 16... Qe7 {[%emt 0:03:23]} (16... a3 17. Ba1 Bxc3 18. Bxc3 Nd5 19. Bxd4 exd4) (16... a3 $19 17. Ba1 Bxc3 18. Bxc3 a2) 17. e3 {[%emt 0:11:09]} Nb3 {[%emt 0:03:03]} 18. Nxb3 {[%emt 0:01:26]} Bxb3 {[%emt 0:00:25]} 19. Qe2 {[%emt 0:00:24]} ({White should play} 19. Qf3) 19... Rfc8 {[%emt 0:09:19]} 20. Rbc1 {[%emt 0:01:33]} Qd7 {[%emt 0:15:52]} 21. Qh5 {[%emt 0:12:36]} f6 {[%emt 0:10:04]} 22. Ne4 {[%emt 0:08:24]} (22. Be4) (22. Be4 $17 {was called for.}) 22... a3 {[%emt 0:02:08]} (22... Qxb5 23. Qg4 Kh8 24. Ba1) (22... Qxd3 23. Nxf6+ gxf6 24. Qg4+ Kf7 25. Qxb4) ({Stronger than} 22... Qxb5 23. Qg4 Kh8 24. Ba1 $17) (22... Qxd3 23. Nxf6+ $1 gxf6 24. Qg4+ Kf7 25. Qxb4 $11) 23. Ba1 {[%emt 0:01:44]} Rxc1 {[%emt 0:01:26]} (23... Qxd3 24. Rxc8+ Rxc8 25. Nxf6+ gxf6 26. Qg4+ Kf7 27. Qxb4 $17) (23... Qxb5 24. Nxf6+ gxf6 25. Be4 $15) 24. Rxc1 {[%emt 0:00:07]} Rc8 {[%emt 0:00:21]} ({Weaker is} 24... Qxd3 25. Nxf6+ gxf6 26. Qg4+ Kh8 27. Qxb4 $14) 25. Rf1 {[%emt 0:02:14]} (25. Rxc8+ $17 {only move.} Qxc8 26. Bh3) 25... Qxd3 {[%emt 0:03:30]} 26. Nxf6+ {[%emt 0:01:00]} gxf6 {[%emt 0:00:07]} 27. Qg4+ {[%emt 0:00:15] [#]} Qg6 $2 {[%emt 0:00:06]} (27... Kf7 28. Qxb4 Bc4) (27... Kf7 $1 $19 {Hoping for ...Bc4.} 28. Qxb4 Bc4) 28. Qxb4 $11 {[%emt 0:00:14]} Bc4 {[%emt 0:01:47]} 29. Rc1 {[%emt 0:00:40]} a2 $36 {[%emt 0:01:23][%mdl 2048] Black is pushing.} 30. Bxb7 {[%emt 0:02:11]} Rc7 {[%emt 0:04:26][%cal Bc8c7,Bc7c6,Bc6b6][%mdl 32]} 31. Bc6 {[%emt 0:00:44]} (31. Bg2 $5 {[%cal Rg2f1]}) 31... Qd3 {[%emt 0:01:12][%cal Oc4b5]} 32. Qa5 $2 {[%emt 0:01:58] [#]} (32. Bf3 $11 {and White stays safe.}) 32... Bxb5 $1 $19 {[%emt 0:01:36][%mdl 64] Pin} ({And not} 32... Qb1 33. Qe1 Bd3 34. Rd1 $11) 33. Qxb6 {[%emt 0:00:39]} (33. Qxa2+ $19 Kf8 34. Bb2 Rxc6 35. Qa3+ Kf7 36. Qxd3 Rxc1+ 37. Bxc1 Bxd3 38. Ba3) 33... Rxc6 {[%emt 0:00:05]} 34. Re1 {[%emt 0:01:04]} Rxb6 {[%emt 0:00:06] Weighted Error Value: White=0.85/Black=0.29 (precise)} 0-1

[Event "Germany Countries-chT Youth 2022"]
[Site "Wiesbaden"]
[Date "2022.10.03"]
[Round "5"]
[White "Malinowsky, Levi"]
[Black "Basovskiy, Jana"]
[Result "0-1"]
[ECO "B40"]
[WhiteElo "1879"]
[BlackElo "1858"]
[Annotator "COMBH"]
[PlyCount "112"]
[EventDate "2022.09.28"]
[EventType "team-tourn"]
[EventRounds "7"]
[EventCountry "GER"]
[TimeControl "40/5400+30:1800+30"]

1. e4 {[%emt 0:00:04]} c5 {[%emt 0:00:03]} 2. Nf3 {[%emt 0:00:06]} e6 {[%emt 0:00:03]} 3. d3 {[%emt 0:00:27]} Nc6 {[%emt 0:00:33]} 4. g3 {[%emt 0:00:19]} Nf6 {[%emt 0:01:30]} 5. Bg2 {[%emt 0:00:45]} Be7 {[%emt 0:02:17]} 6. O-O {[%emt 0:01:02]} d6 {[%emt 0:00:51]} 7. Re1 {[%emt 0:02:08]} O-O {[%emt 0:01:12]} 8. c3 {[%emt 0:00:39]} e5 {[%emt 0:04:14]} 9. h3 {[%emt 0:02:51]} h6 {[%emt 0:03:27]} 10. d4 {[%emt 0:03:37]} cxd4 {[%emt 0:08:46]} 11. cxd4 {[%emt 0:00:10]} Qb6 {[%emt 0:00:29]} 12. d5 $1 {[%emt 0:04:34]} Nb4 {[%emt 0:01:19]} 13. a3 {[%emt 0:06:49]} Na6 {[%emt 0:00:08]} 14. Nc3 {[%emt 0:02:28]} Bd7 {[%emt 0:00:44]} 15. b4 {[%emt 0:01:43]} Rac8 {[%emt 0:01:09]} 16. Be3 {[%emt 0:02:13]} Qd8 {[%emt 0:02:13]} 17. Qd3 {[%emt 0:04:44]} Qc7 {[%emt 0:04:09]} 18. Rac1 {[%emt 0:02:31]} Qb8 {[%emt 0:00:09]} 19. Nd2 {[%emt 0:02:27]} Nc7 {[%emt 0:04:11]} 20. f4 {[%emt 0:03:07]} exf4 {[%emt 0:04:00]} 21. gxf4 {[%emt 0:00:56]} ({Don't do} 21. Bxf4 Nh5 $11) 21... a6 {[%emt 0:04:36]} (21... Rfd8 $16 22. Nc4 Nb5) 22. a4 {[%emt 0:05:55]} Na8 {[%emt 0:03:59]} 23. Bd4 {[%emt 0:03:12]} Bd8 {[%emt 0:00:50]} 24. e5 {[%emt 0:02:22]} dxe5 {[%emt 0:11:22]} 25. fxe5 {[%emt 0:00:23]} Nh5 {[%emt 0:00:26]} 26. e6 {[%emt 0:02:08]} fxe6 {[%emt 0:02:16]} 27. Qg6 {[%emt 0:13:03]} Qf4 {[%emt 0:10:47]} 28. Nf3 {[%emt 0:03:52]} Qf5 {[%emt 0:11:52]} 29. Qxf5 {[%emt 0:01:36]} exf5 {[%emt 0:00:06]} 30. Ne5 {[%emt 0:02:45]} Bf6 {[%emt 0:07:12]} 31. Bc5 {[%emt 0:02:09]} Rfd8 {[%emt 0:04:14]} 32. d6 {[%emt 0:04:11]} b6 {[%emt 0:01:59]} 33. Bxa8 {[%emt 0:01:04]} bxc5 {[%emt 0:00:29]} 34. Bd5+ {[%emt 0:00:08]} Kh7 {[%emt 0:00:21]} 35. Nxd7 {[%emt 0:00:23]} Bd4+ $14 {[%emt 0:01:43]} ({Black should try} 35... cxb4 $17 36. Ne4 (36. Nxf6+ Nxf6 37. Ne4 fxe4 $17) 36... Bd4+ 37. Kh2 Rxc1 38. Rxc1 fxe4 39. Bxe4+ Kg8) 36. Kh1 {[%emt 0:01:53]} cxb4 {[%emt 0:03:24]} 37. Ne2 {[%emt 0:05:53]} Rxc1 {[%emt 0:00:20]} 38. Rxc1 {[%emt 0:00:39]} Rxd7 {[%emt 0:00:46]} 39. Nxd4 {[%emt 0:00:41]} Rxd6 {[%emt 0:00:05]} 40. Bf3 {[%emt 0:01:42]} Rxd4 {[%emt 0:01:24]} 41. Bxh5 {[%emt 0:30:08]} Rh4 {[%emt 0:30:06]} 42. Bf3 {[%emt 0:00:25]} Rxh3+ {[%emt 0:00:00]} 43. Kg2 Rh4 44. Bc6 {[%emt 0:00:00]} Rd4 {[%emt 0:00:00]} 45. Rc5 {[%emt 0:00:00]} Kg6 {[%emt 0:00:00]} 46. Ra5 {[%emt 0:00:00]} Kg5 {[%emt 0:00:00]} 47. Rxa6 {[%emt 0:00:00]} b3 {[%emt 0:00:00]} 48. Be8 {[%emt 0:00:00]} Rb4 {[%emt 0:00:00]} 49. Kg3 {[%emt 0:01:59]} f4+ {[%emt 0:00:00]} 50. Kf3 {[%emt 0:00:44]} b2 {[%emt 0:00:00]} 51. Rg6+ {[%emt 0:05:51]} Kh4 {[%emt 0:02:15]} 52. Rg4+ {[%emt 0:00:07]} Kh3 {[%emt 0:00:03]} 53. Bd7 {[%emt 0:01:03]} b1=Q {[%emt 0:01:31]} 54. Rg1+ {[%emt 0:05:34]} Kh4 {[%emt 0:01:54]} 55. Rg4+ {[%emt 0:01:37]} Kh5 {[%emt 0:00:37]} 56. Be8+ {[%emt 0:00:49]} g6 {[%emt 0:00:05]} 0-1

[Event "Germany Countries-chT Youth 2022"]
[Site "Wiesbaden"]
[Date "2022.10.03"]
[Round "5"]
[White "Guo, Philipp Ziming"]
[Black "Haug, Mara"]
[Result "1-0"]
[ECO "B39"]
[WhiteElo "1851"]
[BlackElo "1611"]
[Annotator "NA RC COMBH"]
[PlyCount "77"]
[EventDate "2022.09.28"]
[EventType "team-tourn"]
[EventRounds "7"]
[EventCountry "GER"]
[SourceTitle "playchess.com"]
[Source "ChessBase"]
[SourceQuality "1"]
[TimeControl "40/5400+30:1800+30"]

1. e4 {[%emt 0:00:03]} c5 {[%emt 0:00:10]} 2. Nf3 {[%emt 0:00:13]} Nc6 {[%emt 0:00:07]} 3. d4 {[%emt 0:00:05]} cxd4 {[%emt 0:00:09]} 4. Nxd4 {[%emt 0:00:07]} g6 {[%emt 0:00:11]} 5. c4 {[%emt 0:00:14]} Bg7 {[%emt 0:00:08]} 6. Be3 {[%emt 0:00:11]} Nf6 {[%emt 0:00:06]} 7. Nc3 {[%emt 0:00:08]} Ng4 {[%emt 0:00:12]} 8. Qxg4 {[%emt 0:00:19]} Nxd4 {[%emt 0:00:07]} 9. Qd1 {[%emt 0:00:16]} e5 {[%emt 0:00:05]} 10. Bd3 {[%emt 0:00:19]} O-O {[%emt 0:00:23]} 11. O-O {[%emt 0:00:22]} b6 {[%emt 0:02:54]} 12. Qd2 {[%emt 0:04:25]} Bb7 {[%emt 0:02:39]} 13. Rad1 {[%emt 0:04:10]} Re8 {[%emt 0:05:48]} 14. Bb1 {[%emt 0:05:36]} Rc8 {[%emt 0:13:37]} 15. b3 {[%emt 0:00:43]} a6 {[%emt 0:02:22]} (15... Bf8 $14) 16. Rfe1 {[%emt 0:05:55]} Re7 {[%emt 0:09:14]} 17. f3 {[%emt 0:05:36]} Ne6 {[%emt 0:02:35]} 18. Rc1 {[%emt 0:07:26]} Nc5 {[%emt 0:11:43]} (18... Re8 $14 {might be stronger.}) 19. Qf2 {[%emt 0:06:31]} d6 {[%emt 0:07:20]} 20. Red1 {[%emt 0:03:51]} a5 {[%emt 0:10:07]} 21. Bc2 {[%emt 0:05:47]} Re6 {[%emt 0:04:12]} 22. a3 {[%emt 0:02:35]} Bf8 {[%emt 0:07:34]} 23. b4 {[%emt 0:03:02]} axb4 {[%emt 0:03:25]} 24. axb4 {[%emt 0:00:07]} Nd7 {[%emt 0:00:07]} 25. Bb3 {[%emt 0:00:36]} Bc6 {[%emt 0:03:37]} 26. c5 {[%emt 0:01:25]} Re8 {[%emt 0:02:27]} 27. cxd6 {[%emt 0:04:07]} b5 {[%emt 0:01:16]} 28. Qa2 {[%emt 0:04:59]} Qf6 {[%emt 0:02:27]} 29. Qd2 {[%emt 0:01:34]} Kh8 $18 {[%emt 0:05:22]} (29... h6 {is a better defense.} 30. Bxh6 Bxh6 31. Qxh6 Nf8) 30. Bg5 {[%emt 0:01:59]} Qg7 {[%emt 0:00:26]} 31. Qd3 {[%emt 0:02:13]} Rb8 {[%emt 0:00:52]} 32. Nd5 {[%emt 0:05:14]} Rec8 {[%emt 0:02:05]} 33. Nc7 {[%emt 0:01:00]} Rb6 {[%emt 0:01:00]} 34. Be3 {[%emt 0:00:16]} Ba8 {[%emt 0:01:14]} 35. Bxb6 {[%emt 0:00:59]} Nxb6 {[%emt 0:00:03]} 36. d7 {[%emt 0:01:52]} Rd8 {[%emt 0:00:07]} 37. Qxb5 {[%emt 0:02:21]} Nxd7 {[%emt 0:00:37]} 38. Nxa8 {[%emt 0:00:43]} Rxa8 {[%emt 0:00:05]} 39. Qxd7 {[%emt 0:00:22]} 1-0

[Event "Germany Countries-chT Youth 2022"]
[Site "Wiesbaden"]
[Date "2022.10.03"]
[Round "5"]
[White "Tovmasyan, Minas"]
[Black "Bock, Marlon"]
[Result "0-1"]
[ECO "D20"]
[WhiteElo "1838"]
[BlackElo "1866"]
[Annotator "NA RC COMBH"]
[PlyCount "70"]
[EventDate "2022.09.28"]
[EventType "team-tourn"]
[EventRounds "7"]
[EventCountry "GER"]
[SourceTitle "playchess.com"]
[Source "ChessBase"]
[SourceQuality "1"]
[TimeControl "40/5400+30:1800+30"]

1. d4 {[%emt 0:00:04]} d5 {[%emt 0:00:05]} 2. c4 {[%emt 0:00:12]} dxc4 {[%emt 0:00:06]} 3. e3 {[%emt 0:00:06]} e5 {[%emt 0:00:39]} 4. Bxc4 {[%emt 0:00:35]} Nc6 {[%emt 0:00:54]} 5. Nf3 {[%emt 0:01:14]} e4 {[%emt 0:00:11]} 6. Nfd2 {[%emt 0:02:39]} Qg5 {[%emt 0:00:30]} 7. Kf1 {[%emt 0:02:53]} (7. Nxe4 $14 Qxg2 8. Ng3) 7... Qg6 {[%emt 0:02:13]} 8. Nc3 {[%emt 0:01:10]} Nf6 {[%emt 0:05:04]} 9. Nb5 {[%emt 0:10:54]} Bd6 {[%emt 0:06:12]} 10. Nxd6+ {[%emt 0:04:27]} cxd6 {[%emt 0:00:09]} 11. b4 {[%emt 0:06:41]} (11. b3 $15) 11... O-O {[%emt 0:09:23]} 12. b5 {[%emt 0:05:55]} Ne7 {[%emt 0:02:42]} (12... Na5 $17 13. h3 Bd7) 13. Ba3 {[%emt 0:05:11]} Nf5 {[%emt 0:02:45]} 14. h4 {[%emt 0:05:05]} h5 {[%emt 0:07:54]} 15. Rc1 {[%emt 0:04:58]} Be6 {[%emt 0:08:22]} 16. Qb3 {[%emt 0:16:25]} d5 {[%emt 0:11:54]} ({Better is} 16... Bxc4+ $19 17. Qxc4 Rfd8) 17. Be2 {[%emt 0:00:20]} ({Reject} 17. Bxf8 dxc4 18. Nxc4 Rxf8 $19) 17... Rfc8 {[%emt 0:01:44]} 18. Rxc8+ {[%emt 0:02:59]} ({White should play} 18. Qd1) 18... Rxc8 {[%emt 0:00:09]} 19. Kg1 {[%emt 0:06:18]} Ng4 {[%emt 0:03:40]} 20. Nf1 {[%emt 0:01:18]} Qf6 {[%emt 0:02:13]} 21. Bxg4 {[%emt 0:05:33]} hxg4 {[%emt 0:00:15]} 22. g3 {[%emt 0:03:24]} Qd8 {[%emt 0:05:30]} 23. Nd2 {[%emt 0:07:58]} Qa5 {[%emt 0:07:19]} 24. Qb4 {[%emt 0:00:59]} Qxb4 {[%emt 0:00:59]} 25. Bxb4 {[%emt 0:00:05]} Rc2 {[%emt 0:00:47]} 26. a4 {[%emt 0:04:18]} Rb2 {[%emt 0:03:55]} 27. Bc3 $17 {[%emt 0:00:15]} Ra2 {[%emt 0:00:44]} 28. Kg2 {[%emt 0:01:29]} Rxa4 {[%emt 0:01:45]} 29. Rb1 {[%emt 0:00:45]} b6 {[%emt 0:01:20]} 30. Kf1 {[%emt 0:00:45]} Nd6 {[%emt 0:01:34]} 31. Rb2 {[%emt 0:00:34]} Bd7 {[%emt 0:00:57]} 32. Ke2 {[%emt 0:00:29]} Bxb5+ {[%emt 0:01:22]} 33. Kd1 {[%emt 0:00:24]} Bd3 {[%emt 0:00:35]} 34. Bb4 {[%emt 0:00:36]} Ra1+ {[%emt 0:00:55]} 35. Nb1 {[%emt 0:00:07]} Nc4 {[%emt 0:00:09]} 0-1

[Event "Germany Countries-chT Youth 2022"]
[Site "Wiesbaden"]
[Date "2022.10.03"]
[Round "5"]
[White "Trunz, Michelle"]
[Black "Keymer, Cecilia"]
[Result "1/2-1/2"]
[ECO "D10"]
[WhiteElo "1821"]
[BlackElo "1696"]
[Annotator "NA RC COMBH"]
[PlyCount "118"]
[EventDate "2022.09.28"]
[EventType "team-tourn"]
[EventRounds "7"]
[EventCountry "GER"]
[SourceTitle "playchess.com"]
[Source "ChessBase"]
[SourceQuality "1"]
[TimeControl "40/5400+30:1800+30"]

1. d4 {[%emt 0:00:02]} d5 {[%emt 0:00:04]} 2. c4 {[%emt 0:00:04]} c6 {[%emt 0:00:04]} 3. cxd5 {[%emt 0:00:03]} cxd5 {[%emt 0:00:04]} 4. Nc3 {[%emt 0:00:03]} Nf6 {[%emt 0:00:18]} 5. Nf3 {[%emt 0:00:10]} Nc6 {[%emt 0:00:16]} 6. Bf4 {[%emt 0:00:06]} a6 {[%emt 0:00:08]} 7. e3 {[%emt 0:00:26] 7.Rc1 might become the main line.} Bg4 {[%emt 0:00:12]} 8. Qb3 {[%emt 0:01:19]} Na5 {[%emt 0:05:03]} 9. Qa4+ {[%emt 0:01:26]} b5 {[%emt 0:06:14]} 10. Qc2 {[%emt 0:02:12] [#]} e6 $146 {[%emt 0:04:29] [#]} ({Predecessor:} 10... Bxf3 $11 11. gxf3 e6 12. Bd3 Bd6 13. Bxd6 Qxd6 14. f4 O-O 15. Qe2 Rfc8 16. O-O Rc6 {0-1 (30) Gvanceladze,A (2182)-Volkov,S (2557) Bryansk 2021}) 11. Nxb5 $1 {[%emt 0:15:16]} axb5 {[%emt 0:17:10]} 12. Bxb5+ {[%emt 0:00:05]} Nd7 {[%emt 0:02:02]} 13. Ne5 {[%emt 0:03:32]} Ra7 {[%emt 0:05:48]} 14. Nxd7 {[%emt 0:15:40]} ({Don't take} 14. Nxg4 Bb4+ 15. Ke2 O-O $18) (14. O-O $18 {has better winning chances.}) 14... Bb4+ {[%emt 0:05:48]} 15. Kf1 {[%emt 0:00:08]} Rxd7 {[%emt 0:02:29]} 16. Qa4 {[%emt 0:04:27]} e5 {[%emt 0:03:54]} (16... Bd2 $2 17. h3 Bf5 18. Ke2 (18. Bxd7+ Qxd7 19. Qxd7+ Kxd7 $11)) 17. Qxb4 {[%emt 0:07:06]} exf4 {[%emt 0:01:04]} 18. exf4 {[%emt 0:02:54]} Qc7 {[%emt 0:05:34]} 19. Bxd7+ {[%emt 0:01:26]} ({White should play} 19. Re1+ Kd8 20. h3) 19... Bxd7 {[%emt 0:00:25]} 20. Re1+ {[%emt 0:00:43]} Kd8 {[%emt 0:00:34]} 21. Qe7+ {[%emt 0:02:19]} (21. h4 Nc6 $16) 21... Kc8 {[%emt 0:00:20]} 22. Qc5 {[%emt 0:00:26]} Qxc5 {[%emt 0:04:28]} 23. dxc5 {[%emt 0:00:01]} Be6 {[%emt 0:01:31]} ({Better is} 23... Bb5+ $15 24. Kg1 Kd7) 24. b3 {[%emt 0:00:55]} Kc7 {[%emt 0:02:48]} 25. Rc1 {[%emt 0:04:49]} Ra8 {[%emt 0:01:41]} 26. Ke2 {[%emt 0:02:57]} Nc6 {[%emt 0:02:46]} 27. Ra1 {[%emt 0:01:44]} Ra3 {[%emt 0:00:39]} 28. Rhd1 {[%emt 0:06:10]} Nb4 {[%emt 0:02:34]} 29. Rd2 {[%emt 0:04:29]} Kc6 {[%emt 0:01:37]} 30. f3 {[%emt 0:03:50]} Kxc5 {[%emt 0:03:45] Decoy} 31. g4 {[%emt 0:01:49]} g6 {[%emt 0:01:18]} 32. Ke3 {[%emt 0:03:20]} d4+ {[%emt 0:05:29]} 33. Ke4 {[%emt 0:01:11]} Bd5+ {[%emt 0:02:27]} 34. Ke5 {[%emt 0:00:08]} Bxb3 {[%emt 0:02:34]} 35. Rc1+ {[%emt 0:08:32]} Bc4 {[%emt 0:00:31]} 36. Rxc4+ {[%emt 0:00:53]} Kxc4 {[%emt 0:00:36]} 37. Rxd4+ {[%emt 0:00:06]} Kc5 {[%emt 0:03:20]} 38. Rd7 {[%emt 0:01:22]} Rxf3 {[%emt 0:05:32]} 39. Rxf7 {[%emt 0:00:44]} Rh3 {[%emt 0:01:35]} 40. a4 {[%emt 0:01:06]} Rxh2 {[%emt 0:02:02]} 41. f5 {[%emt 0:31:30]} gxf5 {[%emt 0:03:30]} 42. Rxf5 {[%emt 0:00:00]} Rh4 {[%emt 0:07:36]} 43. Rf7 {[%emt 0:00:00]} Rxg4 {[%emt 0:03:50]} 44. Rxh7 {[%emt 0:00:00]} Nc6+ {[%emt 0:01:11]} 45. Kf5 {[%emt 0:00:00]} Rxa4 {[%emt 0:00:20]} 46. Rh1 {[%emt 0:00:00]} Rc4 {[%emt 0:01:07]} 47. Ra1 {[%emt 0:00:00]} Kd5 {[%emt 0:01:08]} 48. Rd1+ {[%emt 0:00:00]} Nd4+ {[%emt 0:00:15]} 49. Kf6 {[%emt 0:00:00]} Rc6+ {[%emt 0:01:25]} 50. Kg5 {[%emt 0:00:00]} Re6 {[%emt 0:01:38]} 51. Rd3 {[%emt 0:00:00]} Re5+ {[%emt 0:00:54]} 52. Kf6 $15 {[%emt 0:00:00]} Rf5+ {[%emt 0:01:10]} 53. Ke7 {[%emt 0:00:00]} Ke4 {[%emt 0:00:37]} 54. Rd1 {[%emt 0:00:00]} Rd5 {[%emt 0:01:03]} 55. Re1+ {[%emt 0:00:00]} Kf4 {[%emt 0:01:11]} 56. Rf1+ {[%emt 0:00:00]} Nf3 {[%emt 0:00:32]} 57. Ra1 {[%emt 0:00:00]} Kf5 {[%emt 0:01:17]} 58. Rf1 {[%emt 0:00:00]} Ke4 {[%emt 0:00:59]} 59. Ra1 {[%emt 0:00:00]} Ke5 1/2-1/2

[Event "Germany Countries-chT Youth 2022"]
[Site "Wiesbaden"]
[Date "2022.10.03"]
[Round "5"]
[White "Buchinger, Alexis"]
[Black "Neuhoff, Laertes"]
[Result "1-0"]
[ECO "C44"]
[WhiteElo "1802"]
[BlackElo "1885"]
[Annotator "NA RC COMBH"]
[PlyCount "79"]
[EventDate "2022.09.28"]
[EventType "team-tourn"]
[EventRounds "7"]
[EventCountry "GER"]
[SourceTitle "playchess.com"]
[Source "ChessBase"]
[SourceQuality "1"]
[TimeControl "40/5400+30:1800+30"]

1. e4 {[%emt 0:00:03]} e5 {[%emt 0:00:06]} 2. Nf3 {[%emt 0:00:04]} Nc6 {[%emt 0:00:06]} 3. d4 {[%emt 0:00:18]} exd4 {[%emt 0:00:13]} 4. Nxd4 {[%emt 0:00:06]} Nf6 {[%emt 0:00:10]} 5. Nc3 {[%emt 0:00:07]} Bb4 {[%emt 0:00:06]} 6. Nxc6 {[%emt 0:00:05]} bxc6 {[%emt 0:00:02]} 7. Bd3 {[%emt 0:00:07]} d5 {[%emt 0:00:11]} 8. exd5 {[%emt 0:00:04]} cxd5 {[%emt 0:00:03] 8...0-0 deserves study.} 9. O-O {[%emt 0:00:14]} O-O {[%emt 0:00:07]} 10. h3 {[%emt 0:00:34]} h6 {[%emt 0:08:54]} 11. Qf3 {[%emt 0:03:29]} Be6 {[%emt 0:05:08]} 12. Bf4 {[%emt 0:06:04]} Bd6 {[%emt 0:08:53]} 13. Ne2 {[%emt 0:02:57]} c5 {[%emt 0:08:00]} 14. c3 {[%emt 0:02:41]} Rb8 {[%emt 0:03:41]} 15. b3 {[%emt 0:03:35] [#]} c4 $146 {[%emt 0:04:28]} ({Predecessor:} 15... Re8 16. Rfe1 Bc8 17. Ng3 Bxf4 18. Qxf4 Be6 19. b4 d4 20. bxc5 dxc3 21. Rad1 Qa5 {0-1 (57) Petrisor,A (2392)-Miron,L (2526) Baile Olanesti 2013}) 16. Bc2 {[%emt 0:09:59]} Bxf4 {[%emt 0:07:34]} 17. Nxf4 {[%emt 0:02:34]} Qc7 {[%emt 0:05:18]} 18. Rfe1 {[%emt 0:07:06]} Rb6 {[%emt 0:04:26]} 19. Rad1 {[%emt 0:01:29]} Rd6 {[%emt 0:06:59]} 20. b4 {[%emt 0:03:42]} Rfd8 {[%emt 0:01:24]} 21. Ne2 {[%emt 0:03:00]} Qb6 {[%emt 0:18:52]} (21... a5 $14 {feels stronger.}) 22. Nd4 {[%emt 0:02:03]} Nd7 {[%emt 0:03:14]} (22... Re8 $16 {is a better defense.}) 23. Qe3 {[%emt 0:08:05]} Nf8 {[%emt 0:01:03]} 24. Kh1 {[%emt 0:04:49]} (24. a4 $142) 24... Re8 {[%emt 0:01:52]} 25. Qg3 {[%emt 0:04:52]} Rdd8 {[%emt 0:00:46] [#]} 26. f4 {[%emt 0:03:22]} (26. Ba4 $1 $16 {[%cal Ra4e8]} Bd7 27. Bxd7 Nxd7 28. Nf5) 26... Bc8 {[%emt 0:02:29]} 27. f5 {[%emt 0:07:22]} Nd7 {[%emt 0:03:49]} 28. Rxe8+ {[%emt 0:02:50]} Rxe8 {[%emt 0:00:16]} 29. Re1 {[%emt 0:00:36]} Rf8 {[%emt 0:02:24]} 30. Re7 $16 {[%emt 0:03:22]} Qf6 {[%emt 0:00:44]} 31. Qe3 {[%emt 0:00:41]} Rd8 {[%emt 0:01:31]} 32. Re8+ {[%emt 0:02:07]} Kh7 {[%emt 0:00:26]} 33. Rxd8 {[%emt 0:00:39]} Qxd8 {[%emt 0:00:11]} 34. f6+ {[%emt 0:01:26]} g6 {[%emt 0:00:34]} 35. Qe7 {[%emt 0:05:10]} Qf8 {[%emt 0:00:42]} 36. Ba4 Kg8 {[%emt 0:01:00]} 37. Nc6 {[%emt 0:01:23]} a6 {[%emt 0:01:02]} 38. Bc2 {[%emt 0:05:54]} h5 {[%emt 0:01:12]} 39. h4 {[%emt 0:01:16]} Kh7 {[%emt 0:00:47]} 40. Na7 {[%emt 0:02:48]} 1-0

[Event "Germany Countries-chT Youth 2022"]
[Site "Wiesbaden"]
[Date "2022.10.03"]
[Round "5"]
[White "Semling, Julius"]
[Black "Campora, Daniel H."]
[Result "1/2-1/2"]
[ECO "A45"]
[WhiteElo "1801"]
[BlackElo "2344"]
[Annotator "RC"]
[PlyCount "64"]
[EventDate "2022.09.28"]
[EventType "team-tourn"]
[EventRounds "7"]
[EventCountry "GER"]
[SourceTitle "playchess.com"]
[Source "ChessBase"]
[SourceQuality "1"]
[TimeControl "40/5400+30:1800+30"]

1. d4 {[%emt 0:00:01]} Nf6 {[%emt 0:00:05]} 2. Nc3 {[%emt 0:00:09]} d5 {[%emt 0:00:06]} 3. Bf4 {[%emt 0:00:07]} e6 {[%emt 0:00:13]} 4. Nb5 {[%emt 0:00:16]} Na6 {[%emt 0:00:08]} 5. e3 {[%emt 0:00:20]} Be7 {[%emt 0:01:11]} 6. Nf3 {[%emt 0:00:18]} O-O {[%emt 0:01:50]} 7. Be2 {[%emt 0:03:00]} c5 {[%emt 0:07:13]} 8. c3 {[%emt 0:03:33]} c4 {[%emt 0:08:59]} 9. a4 {[%emt 0:02:10]} Bd7 {[%emt 0:01:32]} 10. b3 {[%emt 0:04:40]} Qa5 {[%emt 0:01:29]} 11. O-O {[%emt 0:03:59]} Bxb5 {[%emt 0:36:14]} 12. axb5 {[%emt 0:00:21]} Qxb5 {[%emt 0:00:03]} 13. bxc4 {[%emt 0:02:06]} dxc4 {[%emt 0:00:06]} 14. Rb1 {[%emt 0:05:19]} Qd5 {[%emt 0:00:49]} 15. Nd2 {[%emt 0:07:18]} b5 {[%emt 0:06:02]} 16. Bf3 {[%emt 0:00:26]} Qd7 {[%emt 0:00:27]} 17. Ra1 {[%emt 0:04:18]} Nc7 {[%emt 0:00:54]} 18. Bxc7 Qxc7 {[%emt 0:00:07]} 19. Bxa8 {[%emt 0:01:37]} Rxa8 {[%emt 0:00:05]} 20. Ra6 {[%emt 0:03:53]} Qb7 {[%emt 0:00:51]} 21. Qa1 {[%emt 0:00:45]} Nd5 {[%emt 0:00:08]} 22. Rb1 {[%emt 0:01:37]} Nxc3 {[%emt 0:02:05]} 23. Rb2 {[%emt 0:05:13]} Ne2+ {[%emt 0:03:50]} 24. Kf1 {[%emt 0:01:07]} c3 {[%emt 0:00:06]} 25. Rba2 {[%emt 0:00:45]} cxd2 {[%emt 0:00:45]} 26. Kxe2 {[%emt 0:00:49]} Qxg2 {[%emt 0:00:08]} 27. Rxa7 {[%emt 0:02:26]} Qg4+ {[%emt 0:01:00]} 28. Kxd2 {[%emt 0:01:07]} Bb4+ {[%emt 0:00:21]} 29. Kd3 {[%emt 0:01:44]} Qf5+ {[%emt 0:01:54]} 30. Ke2 {[%emt 0:00:23]} Qg4+ {[%emt 0:01:09]} 31. Kf1 {[%emt 0:01:54]} Qh3+ {[%emt 0:00:19]} 32. Ke2 {[%emt 0:03:17]} Qg4+ {[%emt 0:00:04]} 1/2-1/2